Cogmind - Beta 15 @@@ ROGUE MODE // 2025.08.07 @ 18:04:49 Player: Zoe Result: Smashed by cave-in Performance ------------- Evolutions (0) 0 Regions Visited (3) 600 Robots Destroyed (17) 85 Value Destroyed (437) 437 Prototype IDs (0) 0 Alien Tech Used (0) 0 Bonus (0) 0 TOTAL SCORE: 1122 Bonus ------- None Cogmind --------- Core Integrity 0/250 Matter 300/300 Energy 100/100 System Corruption 4% Temperature Cool (2) Movement Walking (120) Location -10/Subcaves Parts ------- > --- POWER (1) -------- (None) > --- PROPULSION (2) --- Aluminum Leg Aluminum Leg > --- UTILITY (2) ------ Small Storage Unit Targeting Computer > --- WEAPON (2) ------- Makeshift Sword > --- INVENTORY (8) ---- Light Ion Engine Aluminum Leg Structural Scanner Improved Terrain Scanner Seismic Detector Hacking Suite Light Assault Rifle Grenade Launcher Peak State ------------ > --- POWER ------------ Light Ion Engine > --- PROPULSION ------- Aluminum Leg Aluminum Leg > --- UTILITY ---------- Small Storage Unit Targeting Computer > --- WEAPON ----------- Particle Gun Makeshift Sword > --- INVENTORY -------- Light Ion Engine Aluminum Leg Structural Scanner Improved Terrain Scanner Seismic Detector Hacking Suite Light Assault Rifle Grenade Launcher [Rating: 12] Favorites ----------- Power Ion Engine Engine Ion Engine Propulsion Light Treads Treads Light Treads Leg Aluminum Leg Utility Small Storage Unit Device Seismic Detector Storage Small Storage Unit Processor Targeting Computer Weapon Assault Rifle Energy Gun Small Laser Energy Cannon Beam Cannon Ballistic Gun Assault Rifle Special Weapon Mining Laser Slashing Weapon Makeshift Sword Build | -11 -10 -10 -10 ------- Run | Yrd Mat Min Sub Slots Evolved . | . . . . Power . | . . . . Propulsion . | . . . . Utility . | . . . . Weapon . | . . . . Parts Attached 25 | 9 10 5 1 Power 4 | . 2 2 . Engine 4 | . 2 2 . Core . | . . . . Reactor . | . . . . Propulsion 5 | 3 2 . . Treads 2 | 2 . . . Leg 3 | 1 2 . . Wheel . | . . . . Hover . | . . . . Flight . | . . . . Utility 5 | 3 2 . . Device 3 | 2 1 . . Storage 1 | 1 . . . Processor 1 | . 1 . . Hackware . | . . . . Protection . | . . . . Artifact . | . . . . Weapon 11 | 3 4 3 1 Energy Gun 4 | 2 1 1 . Energy Cannon 2 | . 2 . . Ballistic Gun 3 | 1 . 2 . Ballistic Cannon . | . . . . Launcher . | . . . . Special Weapon 1 | . 1 . . Impact Weapon . | . . . . Slashing Weapon 1 | . . . 1 Piercing Weapon . | . . . . Special Melee Weapon . | . . . . Unidentified Prototypes . | . . . . Parts Lost 4 | . 2 . 2 Power 1 | . . . 1 Propulsion . | . . . . Utility . | . . . . Weapon 3 | . 2 . 1 Highest Loss Streak 2 | . 2 . 2 To Critical Strikes . | . . . . Average Backups 7 | 4 7 8 8 Power . | 1 . . 1 Propulsion 1 | 1 1 1 1 Utility 2 | . 2 4 4 Weapon 2 | 1 2 2 2 Tool/Special . | . . . . Unused Backups 3 | . 1 . 2 Power . | . . . . Propulsion 1 | . 1 . . Utility 1 | . . . 1 Weapon 1 | . . . 1 Tool/Special . | . . . . Average Slot Usage (%) 99 | . 98 99 100 Engine 14 | . 14 14 14 Treads 16 | . 23 . . Leg 11 | . 4 28 28 Device 8 | . 12 . . Storage 14 | . 14 14 14 Processor 5 | . 1 14 14 Energy Gun 12 | . 12 12 14 Energy Cannon 2 | . 2 3 . Ballistic Gun 11 | . 10 12 9 Peak Build Rating 12 | 8 9 9 12 Average Rating 7 | 4 7 8 9 On Entrance 6 | . 8 8 9 Naked Turns . | . . . . Heaviest Build 15 | 9 15 14 13 Greatest Support 40 | 40 40 20 20 Greatest Overweight (x) . | . . . . Average Overweight (x) . | . . . . Largest Inventory Capacity 8 | 8 8 8 8 Average Capacity 7 | 7 8 8 8 Most Carried 8 | 7 8 8 8 Average Carried 7 | 5 7 7 8 Final Capacity 8 | 8 8 8 8 Final Carried 8 | 7 8 8 8 Class Distribution -------------------- 100% | Mutant Dominant Class ---------------- Mutant | -10/Materials Mutant | -10/Mines Mutant | -10/Subcaves Resources | -11 -10 -10 -10 ----------- Run | Yrd Mat Min Sub Matter Collected 642 | 197 276 159 10 Remotely . | . . . . Salvage Created 543 | 55 285 104 99 Parts 37 | 10 17 6 4 Haulers Intercepted . | . . . . Recyclers Shooed 6 | . 2 4 . Parts Field Recycled . | . . . . Retrieved Matter . | . . . . Parts Self-Destructed . | . . . . Prevented . | . . . . Kills | -11 -10 -10 -10 ------- Run | Yrd Mat Min Sub Combat Hostiles Destroyed 12 | . 7 3 2 Melee 2 | . . . 2 Guns 5 | . 5 . . Cannons 4 | . 1 3 . AOE 1 | . 1 . . Classes Destroyed 6 | 1 2 2 1 Tunneler 3 | 3 . . . Recycler 1 | . . 1 . Operator 1 | . 1 . . Swarmer 3 | . . 3 . Grunt 7 | . 7 . . Subdweller 2 | . . . 2 Best Kill Streak 3 | 1 3 3 2 Combat Bots Only 3 | . 3 3 2 Max Kills in Single Turn 1 | 1 1 1 1 Gunslinging . | . . . . Exploded 1 | . 1 . . Melee 1 | . . . 1 Uniques/NPCs Destroyed . | . . . . Combat | -11 -10 -10 -10 -------- Run | Yrd Mat Min Sub Hostile Shots Fired 102 | . 66 30 6 Missed 30 | . 24 6 . Hits 72 | . 42 24 6 Projectile 72 | . 42 24 6 Part Disruptions 1 | . 1 . . Damage Taken 1187 | . 585 189 413 Core 308 | . 105 63 140 Absorbed by Shields . | . . . . Core Remaining (%) 100 | 100 . . . Volleys Fired 77 | 10 49 18 . Largest 2 | 2 2 2 . Hottest 120 | 60 120 120 . Shots Fired 129 | 20 77 32 . Gun 98 | 20 62 16 . Cannon 23 | . 7 16 . Launcher . | . . . . Special 8 | . 8 . . Kinetic 44 | 10 24 10 . Thermal 51 | 8 21 22 . Explosive . | . . . . Electromagnetic 34 | 2 32 . . Robot Hit Streak 9 | 5 9 4 . Robot Miss Streak 7 | 2 7 3 . Penetration Max . | . . . . Secondary Targets . | . . . . Shots Hit Robots 71 | 12 39 16 4 Core Hits 29 | 4 17 6 2 Critical Kills 1 | . 1 . . Critical Parts Destroyed . | . . . . Critical Strikes 2 | . 1 1 . Burn 1 | . . 1 . Destroy 1 | . 1 . . Melee Attacks 12 | . . . 12 Impact . | . . . . Slashing 12 | . . . 12 Piercing . | . . . . Sneak Attacks . | . . . . Combat Hostiles . | . . . . Follow-up Attacks . | . . . . Damage Inflicted 1182 | 156 695 194 137 Guns 689 | 156 427 106 . Cannons 140 | . 52 88 . Explosions 120 | . 120 . . Melee 137 | . . . 137 Ramming . | . . . . Kinetic 358 | 85 211 62 . Thermal 425 | 56 237 132 . Explosive . | . . . . Electromagnetic 262 | 15 247 . . Impact . | . . . . Slashing 137 | . . . 137 Piercing . | . . . . Highest Corruption . | . . . . Average Corruption . | . . . . Corruption Purged . | . . . . Corruption Blocked . | . . . . Overload Shots . | . . . . Overflow Damage 1 | . 1 . . Projectiles 1 | . 1 . . Explosions . | . . . . Melee . | . . . . Knockbacks . | . . . . Impact . | . . . . Kinetic . | . . . . Secondary . | . . . . Self-Inflicted Damage 36 | . 36 . . Shots 1 | . 1 . . Rammed . | . . . . Targets Rammed . | . . . . Kicked . | . . . . Crushed . | . . . . Highest Temperature 462 | . 191 462 . Average Temperature 108 | . 76 167 . Received Heat Transfer 297 | . 273 . 24 Effects 3 | . . 3 . Damage (major) 3 | . . 3 . Siege Activations . | . . . . Martial Activations . | . . . . Shielding Activations . | . . . . Robots Disrupted . | . . . . Combat Hostiles . | . . . . Robots Corrupted . | . . . . Combat Hostiles . | . . . . Parts Fried . | . . . . Impact Corruptions . | . . . . Robots Melted . | . . . . Combat Hostiles . | . . . . Parts Melted . | . . . . Heat Transferred 931 | 125 436 370 . Parts Sabotaged . | . . . . Parts Stolen . | . . . . Parts Stripped . | . . . . Power Chain Reactions 1 | . 1 . . Alert | -11 -10 -10 -10 ------- Run | Yrd Mat Min Sub Maximum Alert Level . | . . . . Low Security (%) 100 | 100 100 100 . Level 1 . | . . . . Level 2 . | . . . . Level 3 . | . . . . Level 4 . | . . . . Level 5 . | . . . . High Security . | . . . . Max Security . | . . . . Peak Influence 167 | 5 167 129 . Initial 54 | . . 54 . Average 38 | 1 39 48 . Influence Increases 378 | 15 273 90 . Destroy 0b10 Robot/C 200 | . 140 60 . Destroy 0b10 Robot/NC 25 | 15 5 5 . Destroy Leader 50 | . 40 10 . Successful Hack 21 | . 21 . . Disable Machine 30 | . 15 15 . Destroy Structure 7 | . 7 . . Lose Combat Pursuer 45 | . 45 . . Influence Decreases 378 | 15 134 229 . Entered New Map 85 | . . 85 . Time Decay 273 | 15 114 144 . Lost Part 20 | . 20 . . Squads Dispatched 4 | . 4 . . Investigation 2 | . 2 . . Extermination . | . . . . Reinforcement 2 | . 2 . . Assault . | . . . . Garrison . | . . . . Intercept . | . . . . Searches Triggered . | . . . . Construction Impeded . | . . . . Haulers Reinforced . | . . . . Active Scanning Responses . | . . . . Cargo Convoy Interrupts . | . . . . Stealth | -11 -10 -10 -10 --------- Run | Yrd Mat Min Sub Distress Signals 2 | . 2 . . Communications Jammed . | . . . . Distress Signals . | . . . . Times Spotted 26 | . 21 3 2 Peak Tracking Total 4 | . 4 3 2 Tactical Retreats 2 | . 2 . . Traps | -11 -10 -10 -10 ------- Run | Yrd Mat Min Sub Traps Triggered 2 | . 2 . . Indirectly . | . . . . Trap Hack Attempts . | . . . . Triggered . | . . . . Disarmed . | . . . . Reprogrammed . | . . . . Reused . | . . . . Traps Extracted . | . . . . Installed . | . . . . Triggered . | . . . . Machines | -11 -10 -10 -10 ---------- Run | Yrd Mat Min Sub Machines Disabled 2 | . 1 1 . Max in Single Turn 1 | . 1 1 . Machines Repaired . | . . . . Machines Dismantled . | . . . . Machines Sabotaged . | . . . . Overloaded Fab Kills . | . . . . Hacking | -11 -10 -10 -10 --------- Run | Yrd Mat Min Sub Machines Accessed 5 | . 5 . . Terminals 5 | . 5 . . Fabricators . | . . . . Repair Stations . | . . . . Recycling Units . | . . . . Scanalyzers . | . . . . Garrison Access . | . . . . Total Hacks 21 | . 21 . . Successful 8 | . 8 . . Failed 13 | . 13 . . Catastrophic 5 | . 5 . . Database Lockouts . | . . . . Manual 20 | . 20 . . Terminals 21 | . 21 . . Fabricators . | . . . . Repair Stations . | . . . . Recycling Units . | . . . . Scanalyzers . | . . . . Garrison Access . | . . . . Terminal Hacks 2 | . 2 . . Terminal Index 1 | . 1 . . Registered Components 1 | . 1 . . Fabricator Hacks . | . . . . Repair Station Hacks . | . . . . Recycling Unit Hacks . | . . . . Scanalyzer . | . . . . Garrison Access Hacks . | . . . . Unauthorized Hacks 6 | . 6 . . Terminals 6 | . 6 . . Track 1 | . 1 . . Botnet 5 | . 5 . . Fabricators . | . . . . Repair Stations . | . . . . Recycling Units . | . . . . Scanalyzers . | . . . . Garrison Access . | . . . . Data Cores Recovered . | . . . . Used . | . . . . Hacking Detections 5 | . 5 . . Full Trace Events 5 | . 5 . . Feedback Events . | . . . . Feedback Blocked . | . . . . Robot Schematics Acquired . | . . . . Robots Built . | . . . . Authchips . | . . . . Time . | . . . . Total Robot Build Rating . | . . . . Part Schematics Acquired . | . . . . Parts Built . | . . . . Authchips . | . . . . Time . | . . . . Total Part Build Rating . | . . . . Parts Repaired . | . . . . Time . | . . . . Parts Recycled . | . . . . Recycled Matter . | . . . . Retrieved Matter . | . . . . Retrieved Components . | . . . . Parts Scanalyzed . | . . . . Part Schematics Acquired . | . . . . Parts Damaged . | . . . . Bothacking | -11 -10 -10 -10 ------------ Run | Yrd Mat Min Sub Used RIF Installer . | . . . . Robots Hacked . | . . . . Non-combat . | . . . . Combat . | . . . . Robot Hacks Applied . | . . . . Relay Couplers Released . | . . . . Fabnet Peak Effective % . | . . . . Robots Rewired . | . . . . Allies Hacked . | . . . . Hacks Repelled . | . . . . Allies | -11 -10 -10 -10 -------- Run | Yrd Mat Min Sub Total Allies 3 | . . 3 . Largest Group 3 | . . 3 3 Highest-Rated Group 40 | . . 40 40 Highest-Rated Ally 16 | . . 16 16 Total Orders . | . . . . Ally Attacks 11 | . . . 11 Total Damage 31 | . . . 31 Kills . | . . . . Allies Corrupted . | . . . . Allies Melted . | . . . . Intel | -11 -10 -10 -10 ------- Run | Yrd Mat Min Sub Active Infowar (turns) 1191 | 52 1139 . . Terrain 197 | 10 187 . . Structural 27 | . 27 . . Seismic 967 | 42 925 . . Robot Analysis Total . | . . . . Derelict Logs Recovered 1 | . . 1 . Drone Launches . | . . . . Drone Recoveries . | . . . . Exploration | -11 -10 -10 -10 ------------- Run | Yrd Mat Min Sub Turns Passed 1961 | 159 1277 416 109 Spaces Moved 607 | 69 218 270 50 Core 3 | 3 . . . Treads 160 | 65 95 . . Legs 444 | 1 123 270 50 Wheels . | . . . . Hover . | . . . . Flight . | . . . . Fastest Speed 50 | 50 120 120 120 Average Speed 130 | 154 137 120 120 Slowest Speed 160 | 160 160 120 120 Overloaded Moves . | . . . . Propulsion Burnouts . | . . . . Robots Hopped . | . . . . Potential Cave-ins 7 | . . . 7 Cave-ins Triggered 1 | . . . 1 Exploration Rate (%) 26 | 5 33 61 5 Regions Visited 3 Branch Regions 2 Pre-discovered Areas . | . . . . Known Exits Taken . | . . . . Unknown Exits Taken 3 | 1 1 1 . Scrap Searched . | . . . . Spaces Dug 10 | . 3 . 7 Terrain Destroyed 12 | . 5 . 7 Melee 7 | . . . 7 Projectile 3 | . 3 . . AOE 2 | . 2 . . Terrain Rammed . | . . . . Walls Destroyed . | . . . . Machines Disabled . | . . . . Actions | -11 -10 -10 -10 --------- Run | Yrd Mat Min Sub Total 1620 | 101 1099 333 87 Wait 853 | . 794 36 23 Move 603 | 68 217 269 49 Hop . | . . . . Pick Up 26 | 13 11 1 1 Fast Attach 3 | . 2 1 . Attach 11 | 7 3 1 . Detach 1 | 1 . . . Swap 20 | 2 14 3 1 Drop 14 | . 9 4 1 Fire 77 | 10 49 18 . Melee 12 | . . . 12 Ram . | . . . . Kick . | . . . . Crush . | . . . . Escape Stasis . | . . . . Rewire . | . . . . Trap . | . . . . Miscellaneous . | . . . . Route ------- -11/Scrapyard -10/Materials -10/Mines (discovered 2 exits: [*Mat] / [*Sub]) -10/Subcaves History --------- Turn | Location | Event 12 | -11/Scrapyard | Discovered new exit (range 15) 160 | -11/Scrapyard | Entered Materials 315 | -10/Materials | Build established: Mutant 1430 | -10/Materials | Discovered new exit (range 6) 1437 | -10/Materials | Entered Mines 1450 | -10/Mines | Core integrity fell below 50% 1455 | -10/Mines | Met a Derelict bent on vengeance 1512 | -10/Mines | Discovered new exit (range 8) 1764 | -10/Mines | Learned Materials interactive machine intel 1778 | -10/Mines | Assisted by bots powering up and referring to "LRC-V3" 1851 | -10/Mines | Discovered new exit (range 3) 1853 | -10/Mines | Entered Subcaves 1853 | -10/Subcaves | Accompanied by 3 allies 1857 | -10/Subcaves | A swath of the cavern ceiling suddenly collapsed 1916 | -10/Subcaves | Shifting Twisted Machinery released Mak. Sword 1917 | -10/Subcaves | Shifting Twisted Machinery released Battle Cannon 1952 | -10/Subcaves | Core integrity fell below 20% 1961 | -10/Subcaves | Lost 3 allies 1962 | -10/Subcaves | Crushed by falling debris 1962 | -10/Subcaves | Smashed by cave-in Last Messages --------------- GOAL=ESCAPE A swath of the cavern ceiling suddenly collapses. 01914_ Trooper 1b destroyed. Mak. Sword falls loose from the Twisted Machinery. Battle Cannon falls loose from the Twisted Machinery. 01918_ Mercenary 1a destroyed. 01926_ Dropped Mining Laser. 01926_ Acquired Mak. Sword. 01951_ E5-ZDN(R) destroyed. 01953_ Acquired 10 matter. 01958_ 99-QIY(R) destroyed. 01962_ The unstable cave ceiling collapses. 01962_ Crushed by falling debris. 01962_ Particle Gun destroyed. 01962_ System corrupted by crushing effect (+1). 01962_ Lgt. Ion Engine destroyed. 01962_ System corrupted by crushing effect (+3). Map ----- +----------------------------------------------------+ | ??????????????????????????????????????? | | ??????????????????????????????????????? | | ??????????????????????????????????????? | | ??????????????????????????????????????? | | ??????????????????????????????????????? | | ??????????????????????????????????????? | | ??????????????????????????????????????? | | ??????????????????????????? ????????? | | ??????????????????????????#"""????????? | | ???????????????????#"""??##""" ???????? | | ???????????????????# #?# ????????? | | ???????????????????? ## #????????? | | ????????????????????? "" =#????????? | | ??????????????????????? """=%##???????? | | ????????????????????????# """ ####???## | | ????????????????????????# [%" ##### | | ???????????????########## =! " # # | | ???????????????# # # " # | | ???????????????# ### | | ??????????????## #?## ## # | | ??????????????# # ##??## ### | | ??????????##??# ########????## ##?? | | ??????????# #### #???????????###??? | | ???????????#*### "| ##????????????????? | | ???????????##%### " #?????????????????? | | ????????????#[@%[# " #????????????????? | | ????????????######"] #????????????????? | | ?????????????????#####????????????????? | | ??????????????????????????????????????? | | ??????????????????????????????????????? | | ??????????????????????????????????????? | | ??????????????????????????????????????? | | ??????????????????????????????????????? | | ??????????????????????????????????????? | | ??????????????????????????????????????? | | ??????????????????????????????????????? | | ??????????????????????????????????????? | | ??????????????????????????????????????? | | ??????????????????????????????????????? | | ??????????????????????????????????????? | | ??????????????????????????????????????? | | ??????????????????????????????????????? | | ??????????????????????????????????????? | | ??????????????????????????????????????? | | ??????????????????????????????????????? | | ??????????????????????????????????????? | | ??????????????????????????????????????? | | ??????????????????????????????????????? | | ??????????????????????????????????????? | | ??????????????????????????????????????? | +----------------------------------------------------+ Best States ------------- Heat Dissipation 25 Energy Generation 10 Energy Capacity 250 Matter Stores 300 Matter Capacity 300 Sight Range 16 Terrain Scan Range 16 Terrain Scan Density 10 Evasion (%) 55 Targeting Accuracy 5 Recoil Reduction 2 Item Schematics ----------------- None Robot Schematics ------------------ None Fabricated ------------ Nothing Repaired ---------- Nothing Alien Tech Used ----------------- None Achievements -------------- None Challenges ------------ None Game ------ Seed JammingLayeredPod Manual? 0 Play Time 00:14:12 Cumulative 33.3 hours Start 2025.08.07 @ 17:51:04 End 2025.08.07 @ 18:04:49 Sessions 1 Manual Loads 0 Difficulty Rogue Special Mode None Game No. 66 Rogue 63 Adventurer 3 Explorer 0 Win Type - Total 0 Types 0/0/0/0/0/0/0/0/0/0 Lore% 26 Gallery% 25 Achievement% 26 Wizard Run 0 Options --------- Layout 1 ASCII 0 Keyboard 0 Movement Mouse Keybinds 0 Fullscreen 1 Font 24/Smallcaps Map View 50x35 Zoom Use 0% Tactical HUD 1 Map Filters NONE Filters NONE Steam 1 RUN: 725ff908-4ba3-4031-83f7-43600cfb8c04